bitfinex/quotes_ETHUSD_20250328
["timestamp","ask_amount","ask_price","bid_price","bid_amount"]
[1743165311103,5.30248,1886.0,1885.5,5.30349]
[1743165311403,5.30196,1886.1,1885.6,5.30323]
[1743165311605,5.30261,1885.9,1885.5,5.30363]
[1743165311814,5.30247,1886.0,1885.5,5.30345]
[1743165311965,5.30246,1886.0,1885.5,5.30345]
[1743165312170,5.30246,1886.0,1885.4,12.59189]
[1743165312171,6.2013,1886.3,1885.4,12.98833347]
[1743165312408,5.30289,1885.8,1885.5,7.247]
[1743165312610,0.62013,1886.2,1885.2,0.9318]
[1743165312611,5.30356,1885.6,1885.2,0.9318]
[1743165312777,5.30356,1885.6,1885.5,7.247]
[1743165312985,5.30379,1885.5,1885.3,7.248]
[1743165313196,5.30391,1885.4,1885.3,7.248]
[1743165313399,5.30391,1885.4,1885.3,7.243]
[1743165313969,5.30434,1885.3,1884.6,33.32105]
[1743165314174,6.36476,1885.4,1884.9,5.30529]
[1743165314405,0.9108,1885.5,1884.1,0.9703]
[1743165314625,5.30611,1884.7,1884.2,7.251]
[1743165314773,5.30667,1884.5,1884.2,7.251]
[1743165315211,5.30612,1884.7,1884.3,5.30687]
[1743165315519,10.61323,1884.5,1884.2,7.251]
[1743165315675,5.30729,1884.2,1884.1,7.287]
[1743165316014,5.30729,1884.2,1884.1,7.286]
[1743165316316,5.30729,1884.2,1884.1,0.05]
[1743165317609,5.3071,1884.3,1884.1,0.05]
[1743165317774,0.9206,1884.6,1884.1,0.05]
[1743165318000,5.30644,1884.5,1884.1,5.35747]
[1743165318201,5.30635,1884.6,1884.2,5.30718]
[1743165318402,0.8964,1884.9,1884.4,5.30647]
[1743165318698,5.30459,1885.2,1884.6,0.9178]
[1743165319022,5.30391,1885.4,1884.9,5.30526]
[1743165319226,6.19988,1885.6,1885.1,5.30449]
[1743165319383,5.30348,1885.6,1885.2,5.30433]
[1743165319583,5.30348,1885.6,1885.2,10.6086]
[1743165319780,0.8936,1885.9,1885.3,0.8682]
[1743165319781,5.30314,1885.7,1885.3,0.8682]
[1743165320101,5.3024,1886.0,1885.3,0.8682]
[1743165320301,5.92181,1886.2,1885.5,5.30356]
[1743165320621,5.30208,1886.1,1885.6,7.187]
[1743165320919,5.30275,1885.9,1885.6,7.187]
[1743165321120,5.3028,1885.8,1885.6,7.187]
[1743165321420,5.3028,1885.8,1885.2,7.173]
[1743165321421,5.30419,1885.3,1885.2,7.173]
[1743165321737,5.30619,1884.6,1884.3,1.98576064]
[1743165322012,5.30587,1884.8,1884.6,7.182]
[1743165322182,5.30582,1884.8,1884.6,7.182]
[1743165322505,5.30588,1884.7,1884.3,6.24146]
[1743165322682,5.30576,1884.8,1884.4,7.178]
[1743165323022,0.9559,1885.3,1884.6,5.30616]
[1743165323320,5.30449,1885.2,1884.4,10.01050926]
[1743165323503,5.30491,1885.1,1884.7,5.30585]
[1743165323702,5.3043,1885.3,1884.9,5.30516]
[1743165324005,5.30365,1885.5,1885.0,12.51903]
[1743165324204,5.30363,1885.5,1885.1,5.30453]
[1743165324390,5.30393,1885.4,1885.1,5.30453]
[1743165324580,0.9559,1885.7,1885.2,7.205]
[1743165324785,10.60753,1885.5,1885.2,7.205]
[1743165325008,5.30365,1885.5,1885.2,7.205]
[1743165325417,5.30339,1885.6,1885.2,12.50946]
[1743165326142,0.8961,1886.0,1885.2,7.205]
[1743165326301,5.30278,1885.8,1885.4,5.30379]
[1743165326502,5.30308,1885.7,1885.3,5.30399]
[1743165326703,5.30352,1885.6,1885.1,5.30468]
[1743165326914,5.833842,1885.6,1885.2,7.162]
[1743165327239,5.30402,1885.4,1885.2,7.162]
[1743165327440,5.30419,1885.3,1885.2,7.162]
[1743165327629,5.30493,1885.1,1884.9,35.202]
[1743165327832,5.30436,1885.3,1884.9,35.202]
[1743165327833,10.60882,1885.3,1885.0,7.159]
[1743165328004,5.30436,1885.3,1885.0,7.159]
[1743165328339,10.60812,1885.4,1885.0,12.46402]
[1743165328537,5.30377,1885.5,1885.1,5.30464]
[1743165328840,5.35133792,1885.9,1885.1,0.9089]
[1743165329005,5.3032,1885.7,1885.3,5.30402]
[1743165329332,5.30366,1885.5,1885.2,5.30438]
[1743165329520,5.30288,1885.8,1885.1,3.74140926]
[1743165329725,5.30257,1885.9,1885.3,5.30397]
[1743165329927,5.30253,1885.9,1885.4,5.30374]
[1743165330224,5.35133792,1886.0,1885.4,5.30374]
[1743165330225,5.35133792,1886.0,1885.9,5.3025]
[1743165330804,5.35133792,1886.0,1885.9,6.2127]
[1743165331141,4.81e-06,1886.0,1885.9,37.8047]
[1743165331302,3.14734172,1886.6,1886.3,5.30125]
[1743165331503,3.14734172,1886.6,1886.4,7.117]
[1743165332122,3.14734172,1886.6,1886.3,7.106]
[1743165332431,0.8872,1886.5,1885.9,7.107]
[1743165332605,5.30181,1886.2,1885.9,7.107]
[1743165332802,5.30197,1886.1,1885.9,7.107]
[1743165333019,5.30222,1886.0,1885.9,7.107]
[1743165333225,5.30197,1886.1,1885.9,7.107]
[1743165333558,5.30238,1886.0,1885.9,7.119]
[1743165333761,5.30197,1886.1,1885.9,7.119]
[1743165333945,5.30167,1886.2,1885.9,7.119]
[1743165334549,5.30195,1886.1,1885.9,7.119]
[1743165335049,5.3019,1886.2,1885.9,7.119]
[1743165335253,5.30194,1886.1,1885.9,7.119]
[1743165336051,7.12153417,1886.5,1885.9,7.119]
[1743165336260,5.30092,1886.5,1885.9,7.119]
[1743165336470,9.4304067,1886.8,1886.0,5.30195]
[1743165336670,5.30145,1886.3,1885.9,7.119]
[1743165336821,5.30221,1886.1,1886.0,7.061]
[1743165337019,1.060397,1886.1,1886.0,7.062]
[1743165337251,5.30194,1886.1,1886.0,7.062]
[1743165337964,5.30161,1886.3,1886.0,7.062]
[1743165338124,5.30094,1886.5,1886.0,12.364]
[1743165338318,5.30054,1886.6,1886.2,5.30154]
[1743165338517,4.1303867,1886.8,1886.2,0.9662]
[1743165338518,3.2147867,1886.8,1886.2,0.9662]
[1743165338958,3.2147867,1886.8,1886.4,5.3011]
[1743165339153,3.2147867,1886.8,1886.5,7.042]
[1743165339361,3.2147867,1886.8,1886.5,12.34281]
[1743165339560,3.2147867,1886.8,1886.6,5.30043]
[1743165339722,3.2147867,1886.8,1886.5,7.042]
[1743165339922,5.30038,1886.7,1886.5,7.042]
[1743165340123,8.5148767,1886.8,1886.5,7.042]
[1743165340334,3.2147867,1886.8,1886.5,7.042]
[1743165340531,3.2147867,1886.8,1886.6,5.3003]
[1743165340758,3.14734172,1886.9,1886.7,5.30011]
[1743165340933,3.14734172,1886.9,1886.8,5.29997]
[1743165341133,4.6e-06,1886.9,1886.8,9.28676549]
[1743165341352,4.6e-06,1886.9,1886.8,26.115944]
[1743165341550,5.29797,1887.6,1887.1,5.29885]
[1743165341781,5.29863,1887.3,1887.2,7.008]
[1743165342170,0.05,1887.9,1887.2,7.008]
[1743165342370,5.29786,1887.6,1887.2,12.3068]
[1743165342523,5.29856,1887.4,1887.2,7.008]
[1743165342723,5.29857,1887.3,1887.2,7.008]
[1743165343168,5.29854,1887.4,1887.2,7.008]
[1743165343379,5.29857,1887.3,1887.2,7.008]
[1743165343748,5.29857,1887.3,1887.2,6.995]
[1743165344151,5.30001,1886.8,1886.5,1.99328385]
[1743165344440,5.29971,1886.9,1886.6,6.985]
[1743165344646,5.30019,1886.8,1886.5,0.9177]
[1743165344847,10.60041,1886.8,1886.6,6.981]
[1743165345049,5.30025,1886.7,1886.3,2.83250926]
[1743165345251,5.3011,1886.4,1886.2,28.9843]
[1743165345546,5.3011,1886.4,1886.2,28.037]
[1743165345741,5.30138,1886.3,1886.2,35.008]
[1743165346367,5.30237,1886.0,1885.6,0.9115]
[1743165346571,5.30182,1886.2,1885.7,6.995]
[1743165346787,5.30145,1886.3,1885.9,5.3024]
[1743165347084,5.30112,1886.4,1886.0,5.30214]
[1743165347253,5.30112,1886.4,1885.7,15.52975269]
[1743165347254,5.30082,1886.5,1886.1,0.05301674]
[1743165347444,5.30082,1886.5,1886.1,12.28882]
[1743165347638,5.30082,1886.5,1886.1,6.987]
[1743165347879,5.30082,1886.5,1886.1,12.2889]
[1743165348056,5.30036,1886.7,1886.3,5.30122]
[1743165348239,5.29956,1887.0,1886.4,0.05300842]
[1743165348467,5.30029,1886.7,1886.3,13.43513926]
[1743165348644,5.29941,1887.0,1886.1,7.9091]
[1743165348645,5.29996,1886.9,1886.5,5.30066]
[1743165348845,5.29941,1887.0,1886.6,6.969]
[1743165349081,5.30025,1886.7,1886.6,6.969]
[1743165349378,5.29943,1887.0,1886.6,6.962]
[1743165349580,5.29904,1887.2,1886.7,6.22599]
[1743165349741,5.29904,1887.2,1886.8,5.29981]
[1743165350079,5.29923,1887.1,1886.7,6.62844025]
[1743165350239,5.2989,1887.2,1886.8,0.05299289]
[1743165350438,5.29861,1887.3,1886.8,5.29975]
[1743165350666,5.29776,1887.6,1886.9,5.29954]
[1743165350667,5.29831,1887.4,1886.9,5.29954]
[1743165350972,5.29804,1887.5,1887.1,5.29894]
[1743165351175,5.29804,1887.5,1887.0,5.35238835]
[1743165351176,5.29804,1887.5,1887.2,6.938]
[1743165351383,5.29861,1887.3,1886.9,8.66213326]
[1743165351583,5.2988,1887.3,1887.0,6.934]
[1743165351756,5.29891,1887.2,1887.0,6.934]
[1743165352444,5.29913,1887.1,1886.9,6.921]
[1743165352642,5.29941,1887.0,1886.9,6.921]
[1743165352848,5.29975,1886.9,1886.5,33.3278]
[1743165353059,5.29914,1887.1,1886.6,6.927]
[1743165353269,5.29795,1887.6,1886.8,5.2998]
[1743165353270,5.29901,1887.2,1886.8,5.2998]
[1743165353584,5.29926,1887.1,1886.7,5.30014]
[1743165353753,5.29995,1886.9,1886.5,28.42831501]
[1743165353959,5.29995,1886.9,1886.5,33.72907501]
[1743165354153,5.30023,1886.8,1886.6,6.919]
[1743165354469,5.29962,1887.0,1886.6,12.27231979]
[1743165354663,5.29961,1887.0,1886.6,6.919]
[1743165354843,5.2998,1886.9,1886.6,6.919]
[1743165355050,5.29961,1887.0,1886.6,12.21932]
[1743165355251,5.29961,1887.0,1886.6,12.21949]
[1743165355470,8.53943279,1887.3,1886.5,28.42831501]
[1743165355675,8.53943279,1887.3,1886.7,6.901]
[1743165355676,5.30016,1886.8,1886.7,6.901]
[1743165356047,5.30049,1886.7,1886.5,28.027]
[1743165356254,5.30054,1886.6,1886.2,5.30149]
[1743165356460,5.30049,1886.7,1886.3,6.886]
[1743165356667,5.3011,1886.4,1886.3,6.886]
[1743165356869,5.30213,1886.1,1885.8,28.022]
[1743165357086,5.30161,1886.3,1885.9,6.888]
[1743165357389,5.30175,1886.2,1885.9,6.888]
[1743165357681,5.30147,1886.3,1886.0,6.897]
[1743165357682,5.30195,1886.1,1886.0,6.897]
[1743165358245,5.30236,1886.0,1885.8,28.022]
[1743165358445,5.3025,1885.9,1885.8,28.022]
[1743165358679,6.24666,1886.2,1885.8,34.906]
[1743165358846,0.9448,1886.5,1885.8,36.45627668]
[1743165359050,5.30147,1886.3,1885.8,40.61493784]
[1743165359247,5.30166,1886.2,1885.8,40.61482784]
[1743165359447,5.30147,1886.3,1885.9,5.30249]
[1743165359892,5.30147,1886.3,1886.0,5.30212]
[1743165360063,6.15292328,1887.2,1886.0,5.30212]
[1743165360064,5.30056,1886.6,1886.0,3.74390926]
[1743165360262,5.30056,1886.6,1886.2,5.30142]
[1743165360480,3.24079279,1887.0,1886.1,5.30191]
[1743165360481,3.24079279,1887.0,1886.3,6.91600919]
[1743165360683,8.54041279,1887.0,1886.6,5.30041]
[1743165360850,3.24079279,1887.0,1886.7,5.29998]
[1743165361049,3.24079279,1887.0,1886.8,17.45973]
[1743165361263,3.24079279,1887.0,1886.9,5.29969]
[1743165361881,3.24079279,1887.0,1886.8,12.15992]
[1743165362259,5.29969,1886.9,1886.8,6.86]
[1743165362583,5.2996,1887.0,1886.8,6.86]
[1743165362757,10.59923,1887.0,1886.8,6.86]
[1743165362963,5.2996,1887.0,1886.6,6.21179]
[1743165363171,5.2996,1887.0,1886.9,6.825]
[1743165363375,5.30068,1886.6,1886.3,1.36527592]
[1743165363562,5.30024,1886.8,1886.4,6.824]
[1743165363760,5.30082,1886.5,1886.4,6.824]
[1743165363981,5.30055,1886.6,1886.4,6.824]
[1743165364360,5.29988,1886.9,1886.5,5.30059]
[1743165364568,5.29922,1887.1,1886.6,0.9737]
[1743165364881,5.29944,1887.0,1886.6,11.57449]
[1743165365186,5.29944,1887.0,1886.6,6.27412]
[1743165365386,10.5984,1887.1,1886.7,5.30011]
[1743165365589,5.29915,1887.1,1886.6,6.274]
[1743165365787,5.29872,1887.3,1886.6,9.73414826]
[1743165365990,5.29802,1887.5,1886.7,5.30025]
[1743165366300,5.2983,1887.4,1887.0,5.2993]
[1743165366506,5.29597,1888.3,1887.8,5.29717]
[1743165366791,6.26743,1888.5,1887.8,34.85]
[1743165366792,5.29646,1888.1,1887.8,34.85]
[1743165366990,5.29576,1888.4,1887.8,40.14717]
[1743165367160,5.29587,1888.3,1887.8,41.04417]
[1743165367507,5.2956,1888.4,1887.8,68.250889]
[1743165367672,5.29547,1888.5,1887.8,62.330719]
[1743165367872,5.29494,1888.6,1887.8,55.502719]
[1743165368073,16.10096619,1889.3,1888.7,0.6657]
[1743165368377,16.10096619,1889.3,1887.8,59.676549]
[1743165368378,16.10096619,1889.3,1888.3,0.6657]
[1743165368564,5.29535,1888.5,1888.4,6.867]
[1743165368762,5.29621,1888.2,1887.8,28.022]
[1743165368982,5.29563,1888.4,1887.9,6.866]
[1743165369294,5.29616,1888.2,1887.9,6.866]
[1743165369662,5.29553,1888.4,1887.9,12.16286]
[1743165369861,5.29656,1888.1,1887.7,0.6657]
[1743165370201,10.59308,1888.1,1887.8,34.873]
[1743165370375,5.29652,1888.1,1887.8,34.873]
[1743165370696,5.29774,1887.6,1887.3,28.016]
[1743165370902,5.29774,1887.6,1887.4,6.856]
[1743165371084,5.29765,1887.7,1887.4,6.856]
[1743165371463,5.29796,1887.6,1887.4,6.856]
[1743165371661,5.29804,1887.5,1887.1,0.9502]
[1743165371865,5.29822,1887.5,1887.2,6.842]
[1743165372403,5.29856,1887.4,1887.3,6.836]
[1743165372559,5.29803,1887.5,1887.3,6.836]
[1743165372759,5.29829,1887.4,1887.3,6.836]
[1743165373154,5.29861,1887.3,1887.0,28.9145]
[1743165373359,5.29956,1887.0,1886.6,28.015]
[1743165373590,5.29996,1886.9,1886.7,6.82]
[1743165373888,5.29925,1887.1,1886.7,6.82]
[1743165374095,5.29858,1887.3,1886.9,5.29954]
[1743165374272,5.29858,1887.3,1886.8,5.29985]
[1743165374476,0.9255,1887.4,1886.7,6.82]
[1743165374677,5.29817,1887.5,1887.0,10.59847]
[1743165374883,5.29817,1887.5,1887.1,5.29899]
[1743165375081,5.29817,1887.5,1887.2,6.809]
[1743165375284,5.29831,1887.4,1887.2,6.809]
[1743165375500,5.29857,1887.3,1887.2,6.809]
[1743165378706,5.29822,1887.5,1887.2,6.809]
[1743165378867,5.29821,1887.5,1887.2,6.809]
[1743165379203,5.29857,1887.3,1887.2,6.809]
[1743165379373,5.29857,1887.3,1887.2,6.761]
[1743165379577,5.29839,1887.4,1887.2,6.761]
[1743165379812,5.29857,1887.3,1887.2,6.761]
[1743165379988,5.29823,1887.5,1887.2,6.761]
[1743165380188,10.59645,1887.5,1887.2,6.761]
[1743165380515,5.29822,1887.5,1887.2,6.761]
[1743165380876,5.29783,1887.6,1887.2,17.35832]
[1743165381071,5.29748,1887.7,1887.2,6.761]
[1743165381287,5.29857,1887.3,1887.2,6.761]
[1743165381485,5.29548,1888.4,1887.6,12.305235]
[1743165381684,5.29717,1887.8,1887.7,6.767]
[1743165382209,5.29698,1887.9,1887.1,3.39934562]
[1743165382210,5.298,1887.6,1887.4,6.77]
[1743165382405,5.29801,1887.5,1887.4,6.77]
[1743165382609,5.298,1887.6,1887.4,6.77]
[1743165383112,5.29796,1887.6,1887.4,6.77]
[1743165383302,5.29746,1887.7,1887.4,6.77]
[1743165383472,5.29784,1887.6,1887.4,6.77]
[1743165384100,5.29721,1887.8,1887.4,6.77]
[1743165384101,5.29717,1887.8,1887.4,6.77]
[1743165384302,5.29753,1887.7,1887.4,6.77]
[1743165384503,5.29776,1887.6,1887.4,6.77]
[1743165385104,5.29746,1887.7,1887.4,6.77]
[1743165385279,6.26104,1887.9,1887.4,12.06817]
[1743165385619,5.29727,1887.8,1887.4,6.77]
[1743165385909,5.29727,1887.8,1887.4,12.06823]
[1743165386109,5.29727,1887.8,1887.4,12.06828]
[1743165386402,6.26096,1887.9,1887.4,12.06828]
[1743165386607,5.29721,1887.8,1887.4,6.77]
[1743165386804,10.59459,1887.8,1887.4,6.77]
[1743165387014,5.29721,1887.8,1887.4,6.77]
[1743165387909,0.964,1887.9,1887.4,6.77]
[1743165388115,5.29573,1888.4,1887.6,8.13023926]
[1743165388418,5.29573,1888.4,1887.9,5.29688]
[1743165388583,5.29573,1888.4,1888.0,11.9836]
[1743165388782,5.29567,1888.4,1888.0,6.687]
[1743165389011,5.29567,1888.4,1888.0,11.98354]
[1743165389175,5.29505,1888.6,1888.0,11.9835]
[1743165389401,5.29563,1888.4,1888.0,12.98028]
[1743165389807,10.59134,1888.4,1888.0,7.6837]
[1743165390109,5.29518,1888.6,1888.0,12.98026]
[1743165390323,0.9746,1888.8,1888.0,7.6837]
[1743165390549,5.29559,1888.4,1888.0,12.9802]
[1743165391540,5.29548,1888.4,1888.0,12.98006]
[1743165391912,10.59066,1888.5,1888.0,12.98006]
[1743165392106,5.29549,1888.4,1888.0,12.98006]
[1743165393340,5.29553,1888.4,1888.0,12.98006]
[1743165393641,5.29587,1888.3,1888.0,7.6837]
[1743165394142,5.29495,1888.6,1887.7,1.97188283]
[1743165394341,5.29684,1888.0,1887.8,6.604]
[1743165394539,5.29588,1888.3,1887.9,5.29672]
[1743165394934,10.59184,1888.3,1887.9,5.29672]
[1743165395244,5.29529,1888.5,1887.9,2.83250926]
[1743165395546,5.29536,1888.5,1888.1,5.29623]
[1743165395941,5.29494,1888.6,1888.1,5.34912086]
[1743165396141,5.29494,1888.6,1888.2,5.29589]
[1743165396344,5.29467,1888.7,1888.3,6.584]
[1743165396513,5.29494,1888.6,1888.3,6.584]
[1743165397315,5.29548,1888.4,1888.3,6.584]
[1743165397831,5.29665,1888.0,1887.7,28.9229]
[1743165398016,5.29665,1888.0,1887.8,6.57]
[1743165398432,5.29665,1888.0,1887.9,6.562]
[1743165398433,5.29687,1888.0,1887.9,6.562]
[1743165399826,10.59227,1888.2,1887.9,6.562]
[1743165400139,5.29605,1888.2,1887.9,6.562]
[1743165400456,5.29636,1888.1,1887.9,6.562]
[1743165400750,5.29605,1888.2,1887.9,11.85884]
[1743165400950,5.29605,1888.2,1887.9,6.562]
[1743165401254,5.29605,1888.2,1887.9,11.85888]
[1743165401747,5.29605,1888.2,1887.9,6.562]
[1743165401962,5.29658,1888.1,1887.9,6.562]
[1743165402132,5.29661,1888.0,1887.9,6.562]
[1743165402547,5.29658,1888.1,1887.9,6.562]
[1743165402747,5.29649,1888.1,1887.9,6.562]
[1743165402947,5.29579,1888.3,1887.9,11.85877]
[1743165403237,5.29525,1888.5,1888.1,5.29618]
[1743165403466,5.29525,1888.5,1888.1,10.59235]
[1743165403770,5.29566,1888.4,1888.0,5.29659]
[1743165403972,5.29616,1888.2,1887.9,12.77327]
[1743165404271,5.2958,1888.3,1888.0,5.29657]
[1743165404705,5.2958,1888.3,1887.9,15.60574926]
[1743165404864,5.29558,1888.4,1887.9,10.30890926]
[1743165405063,5.29558,1888.4,1888.0,5.29646]
[1743165405302,5.29577,1888.3,1888.0,5.29646]
[1743165405514,5.29545,1888.5,1888.1,5.29619]
[1743165405689,5.2954,1888.5,1888.1,5.34915058]
[1743165406005,5.2954,1888.5,1888.2,5.29604]
[1743165406176,10.59009,1888.6,1888.2,5.29577]
[1743165406578,5.29595,1888.3,1887.9,15.60561926]
[1743165406772,5.29614,1888.2,1887.9,10.30890926]
[1743165406973,5.29614,1888.2,1887.9,7.4764]
[1743165406974,10.59236,1888.2,1887.9,7.4764]
[1743165407501,5.29614,1888.2,1887.9,7.4764]
[1743165407704,5.29674,1888.0,1887.7,29.46497214]
[1743165407866,5.29674,1888.0,1887.8,6.457]
[1743165408063,5.29674,1888.0,1887.7,34.76240214]
[1743165408064,5.29695,1887.9,1887.7,29.06955891]
[1743165408289,5.29695,1887.9,1887.8,6.454]
[1743165408665,5.29664,1888.0,1887.8,6.454]
[1743165408866,5.29689,1887.9,1887.8,6.454]
[1743165410115,5.29664,1888.0,1887.8,6.454]
[1743165410319,5.29689,1887.9,1887.8,6.454]
[1743165410926,5.29689,1887.9,1887.7,28.006]
[1743165410927,5.29717,1887.8,1887.7,28.006]
[1743165411077,5.29756,1887.7,1887.5,8.26569432]
[1743165411398,5.29773,1887.6,1887.5,8.26569432]
[1743165412275,5.29756,1887.7,1887.5,8.26569432]
[1743165412593,5.29773,1887.6,1887.5,8.26569432]
[1743165415080,5.29896,1887.2,1886.9,28.003]
[1743165415281,5.29896,1887.2,1887.0,6.387]
[1743165415499,5.29833,1887.4,1887.0,6.387]
[1743165415725,5.29814,1887.5,1887.1,5.29888]
[1743165415911,5.29846,1887.4,1887.0,14.51889926]
[1743165416073,5.29861,1887.3,1887.0,6.387]
[1743165416279,10.59739,1887.3,1887.0,6.387]
[1743165416678,5.2989,1887.2,1887.0,6.387]
[1743165416906,10.59799,1887.2,1887.0,6.387]
[1743165417119,5.2989,1887.2,1886.9,28.40325574]
[1743165417280,5.2989,1887.2,1887.1,6.361]
[1743165417611,5.29941,1887.0,1886.9,28.003]
[1743165417811,5.29941,1887.0,1886.9,34.362]
[1743165418013,5.30013,1886.8,1886.6,1.05546328]
[1743165418192,0.9846,1886.9,1886.4,14.50148926]
[1743165418193,5.2997,1886.9,1886.4,14.50148926]
[1743165418387,5.29961,1887.0,1886.5,5.30064]
[1743165418588,5.29918,1887.1,1886.6,6.2624]
[1743165418816,5.29954,1887.0,1886.6,6.2624]
[1743165418992,10.59916,1887.0,1886.6,6.2624]
[1743165419192,5.30008,1886.8,1886.6,0.9621]
[1743165419410,5.30008,1886.8,1886.7,6.36]
[1743165419622,5.29915,1887.1,1886.3,0.956]
[1743165419915,5.30027,1886.7,1886.4,6.358]
[1743165420222,10.60074,1886.7,1886.4,6.358]
[1743165420523,5.30063,1886.6,1886.4,6.358]
[1743165420699,5.30082,1886.5,1886.4,6.358]
[1743165420898,5.30143,1886.3,1886.1,7.41955226]
[1743165421101,1.0045,1886.7,1886.2,6.349]
[1743165421419,5.30126,1886.4,1886.2,6.349]
[1743165421799,5.30126,1886.4,1886.3,6.345]
[1743165422493,6.23426,1886.2,1886.1,0.05]
[1743165423328,9.23426,1886.2,1886.1,1e-05]
[1743165423528,6.23426,1886.2,1886.1,1e-05]
[1743165423901,5.30166,1886.2,1886.1,1e-05]
[1743165424100,5.30149,1886.3,1886.1,1e-05]
[1743165424101,5.30129,1886.4,1886.1,1e-05]
[1743165424427,5.30128,1886.4,1886.1,1e-05]
[1743165424723,5.30057,1886.6,1886.1,0.634211]
[1743165424924,5.29981,1886.9,1886.5,5.30066]
[1743165425226,0.9207,1887.4,1886.7,8.13253926]
[1743165425425,5.29719,1887.8,1886.6,7.2916]
[1743165425426,5.29774,1887.6,1887.1,5.2991]
[1743165425723,5.29813,1887.5,1887.2,6.346]
[1743165426105,5.29755,1887.7,1887.3,5.29848]
[1743165426303,11.80737521,1888.1,1887.3,5.29848]
[1743165426304,5.29704,1887.9,1887.3,8.13094926]
[1743165426508,5.29797,1887.6,1887.1,39.60453]
[1743165426821,5.29801,1887.5,1887.4,6.338]
[1743165427035,12.80007521,1888.1,1887.1,35.04269275]
[1743165427036,18.09655521,1888.1,1887.1,35.04269275]
[1743165427240,5.29759,1887.7,1887.4,6.334]
[1743165428227,5.29715,1887.9,1887.4,11.63227]
[1743165428535,5.29692,1887.9,1887.4,11.63228]
[1743165428737,0.9927,1888.1,1887.4,6.334]
[1743165428911,5.29758,1887.7,1887.4,6.334]
[1743165429112,10.59457,1887.8,1887.4,11.63229]
[1743165429354,5.29718,1887.8,1887.4,6.334]
[1743165429647,5.2975,1887.7,1887.4,6.334]
[1743165430023,5.29783,1887.6,1887.4,6.334]
[1743165430219,5.29802,1887.5,1887.1,29.74362275]
[1743165430456,5.29802,1887.5,1887.2,6.303]
[1743165430623,5.29802,1887.5,1887.2,7.11625393]
[1743165431154,5.29787,1887.6,1887.2,12.41493393]
[1743165431357,5.29839,1887.4,1887.1,29.0066]
[1743165431511,5.29808,1887.5,1887.2,6.291]
[1743165431954,5.29689,1887.9,1887.2,6.291]
[1743165432157,10.59691,1887.4,1887.2,6.291]
[1743165432332,5.29839,1887.4,1887.2,6.291]
[1743165432530,5.29689,1887.9,1887.1,29.0066]
[1743165432531,5.29885,1887.2,1887.1,29.0066]
[1743165432760,5.29885,1887.2,1887.1,6.279]
[1743165433652,8.29743,1887.8,1887.1,7.8607]
[1743165433848,5.29814,1887.5,1887.1,13.15972]
[1743165434172,5.29822,1887.5,1887.1,13.15967]
[1743165434620,5.29822,1887.5,1887.1,13.15956]
[1743165434815,5.29773,1887.6,1887.0,2.83250926]
[1743165435020,5.29969,1886.9,1886.8,0.9609]
[1743165435336,5.29969,1886.9,1886.8,6.275]
[1743165435542,5.29952,1887.0,1886.8,6.275]
[1743165435733,10.59912,1887.0,1886.8,6.275]
[1743165435916,5.29928,1887.1,1886.8,6.275]
[1743165436251,0.9151,1887.6,1887.1,5.29906]
[1743165436559,5.29777,1887.6,1887.2,0.05298533]
[1743165436717,5.29805,1887.5,1887.3,6.267]
[1743165437049,5.29777,1887.6,1887.3,6.267]
[1743165437221,6.20846,1888.2,1887.5,5.29788]
[1743165437416,5.29643,1888.1,1887.6,6.28721187]
[1743165437628,5.29687,1888.0,1887.6,6.23424]
[1743165437948,5.29635,1888.1,1887.7,5.29733]
[1743165438254,5.29635,1888.1,1887.8,6.262]
[1743165439755,5.29606,1888.2,1887.8,11.61193695]
[1743165439955,5.29635,1888.1,1887.8,6.262]
[1743165440263,5.29635,1888.1,1887.8,11.55913]
[1743165440555,5.29662,1888.0,1887.8,6.262]
[1743165440759,5.29614,1888.2,1887.8,11.559]
[1743165440954,10.59243,1888.2,1887.8,11.559]
[1743165441123,5.2964,1888.1,1887.8,6.262]
[1743165441329,5.29608,1888.2,1887.8,11.559]
[1743165441542,10.59231,1888.2,1887.8,11.559]
[1743165441746,5.29608,1888.2,1887.8,11.559]
[1743165442085,5.29653,1888.1,1887.6,3.76910926]
[1743165442263,5.29727,1887.8,1887.7,6.219]
[1743165442764,5.29727,1887.8,1887.6,0.9366]
[1743165442765,5.29745,1887.7,1887.6,0.9366]
[1743165442925,5.29745,1887.7,1887.6,6.212]
[1743165443131,10.59462,1887.8,1887.6,6.212]
[1743165443558,5.29745,1887.7,1887.6,6.212]
[1743165444536,1.059187,1888.2,1887.6,6.212]
[1743165444755,0.9876,1888.6,1887.8,1.0185]
[1743165445029,5.29582,1888.3,1887.9,8.12911926]
[1743165445739,5.29566,1888.4,1887.9,8.12911926]
[1743165445740,5.29566,1888.4,1888.0,5.29655]
[1743165445959,5.29577,1888.3,1888.1,6.196]
[1743165446158,5.29507,1888.6,1888.1,6.196]
[1743165446489,5.29532,1888.5,1888.1,11.49223]
[1743165446785,5.29562,1888.4,1888.1,6.196]
[1743165447284,5.29497,1888.6,1888.1,11.49232]